bitfinex/quotes_BTCUSD_20241124
["timestamp","ask_amount","ask_price","bid_price","bid_amount"]
[1732407802694,0.0486,97769.0,97760.0,0.22886089]
[1732407802920,0.02427866,97768.0,97760.0,0.22886089]
[1732407808200,0.02427866,97768.0,97759.0,0.19373148]
[1732407811874,0.02427866,97768.0,97759.0,0.0017176]
[1732407814661,0.02427866,97768.0,97759.0,0.1517176]
[1732407815657,0.02427866,97768.0,97759.0,0.0017176]
[1732407822173,0.02427866,97768.0,97759.0,0.19364549]
[1732407822701,0.02427866,97768.0,97759.0,0.1517176]
[1732407823417,0.00127866,97768.0,97759.0,0.0017176]
[1732407824117,0.00127866,97768.0,97759.0,0.1517176]
[1732407828981,0.0486,97769.0,97759.0,0.1517176]
[1732407829221,0.00105503,97768.0,97759.0,0.1517176]
[1732407830297,0.00105503,97768.0,97759.0,0.55362676]
[1732407830510,0.00105503,97768.0,97761.0,0.15]
[1732407830736,0.00105503,97768.0,97761.0,0.55190916]
[1732407830970,0.00105503,97768.0,97761.0,0.15]
[1732407831678,0.00105503,97768.0,97760.0,0.15]
[1732407831936,0.00105503,97768.0,97760.0,0.55190916]
[1732407832359,0.00105503,97768.0,97762.0,0.40190916]
[1732407833287,0.00105503,97768.0,97763.0,0.40190916]
[1732407834191,0.00105503,97768.0,97760.0,0.15]
[1732407834192,0.00105503,97768.0,97764.0,0.40190916]
[1732407835302,0.00105503,97768.0,97760.0,0.15]
[1732407835303,0.00105503,97768.0,97765.0,0.40190916]
[1732407835524,0.00105503,97768.0,97766.0,0.40190916]
[1732407836617,0.00105503,97768.0,97767.0,0.40190916]
[1732407836805,0.00105503,97768.0,97766.0,0.40190916]
[1732407837266,0.00105503,97768.0,97767.0,0.40190916]
[1732407838321,0.00105503,97768.0,97759.0,0.1517176]
[1732407841712,0.04131303,97769.0,97767.0,0.40324922]
[1732407842208,0.04131303,97769.0,97759.0,0.1517176]
[1732407849561,0.02234954,97768.0,97759.0,0.1517176]
[1732407851737,0.10201427,97767.0,97759.0,0.0017176]
[1732407851972,0.023,97766.0,97759.0,0.0017176]
[1732407852253,0.023,97762.0,97759.0,0.0017176]
[1732407852482,0.023,97760.0,97759.0,0.0017176]
[1732407852707,0.17271427,97760.0,97759.0,0.0017176]
[1732407856642,0.023,97760.0,97759.0,0.0017176]
[1732407856861,0.023,97767.0,97759.0,0.40514376]
[1732407857066,0.0478,97768.0,97763.0,0.40342616]
[1732407857067,0.023,97765.0,97763.0,0.40342616]
[1732407857297,0.12501427,97765.0,97764.0,0.40342616]
[1732407857507,0.023,97767.0,97764.0,0.40342616]
[1732407857715,0.12501427,97767.0,97765.0,0.40342616]
[1732407857958,0.12501427,97767.0,97765.0,0.40339023]
[1732407859373,0.12501427,97767.0,97764.0,0.40339023]
[1732407859594,0.12501427,97767.0,97766.0,0.40339023]
[1732407862246,0.12501427,97767.0,97766.0,0.40510803]
[1732407862477,0.12501427,97767.0,97766.0,0.40511885]
[1732407864219,0.1229307,97767.0,97766.0,0.0017178]
[1732407865268,0.2479307,97767.0,97766.0,0.0017178]
[1732407868147,0.24728024,97767.0,97766.0,0.0017178]
[1732407873121,0.17008024,97767.0,97766.0,0.0017178]
[1732407873330,0.12228024,97767.0,97766.0,0.0017178]
[1732407873535,0.12228024,97767.0,97766.0,0.02473996]
[1732407876117,0.12228024,97767.0,97766.0,0.06633267]
[1732407876339,0.12228024,97767.0,97766.0,0.02473996]
[1732407877202,0.12228024,97767.0,97766.0,0.0017178]
[1732407885008,0.12228024,97767.0,97766.0,0.40497826]
[1732407885230,0.12228024,97767.0,97766.0,0.0017178]
[1732407887334,0.12228024,97767.0,97766.0,0.40502207]
[1732407887567,0.12228024,97767.0,97766.0,0.0017178]
[1732407887799,0.12228024,97767.0,97764.0,0.0017178]
[1732407888183,0.11518072,97767.0,97764.0,0.0017178]
[1732407888550,0.11518072,97767.0,97766.0,0.0017178]
[1732407888779,0.11603962,97767.0,97766.0,0.0017178]
[1732407889211,0.1638662,97767.0,97766.0,0.0017178]
[1732407889841,0.16321248,97767.0,97766.0,0.0017178]
[1732407891677,0.11521248,97767.0,97766.0,0.0017178]
[1732407894089,0.11456039,97767.0,97766.0,0.0017178]
[1732407899310,0.11456039,97767.0,97766.0,0.0012912]
[1732407902163,0.16326039,97767.0,97766.0,0.0012912]
[1732407902385,0.24456039,97767.0,97766.0,0.0012912]
[1732407903524,0.16326039,97767.0,97766.0,0.0012912]
[1732407907787,0.15796595,97767.0,97766.0,0.0012912]
[1732407908006,0.15157317,97767.0,97766.0,0.0012912]
[1732407908228,0.0008589,97767.0,97766.0,0.02872437]
[1732407908457,0.0008589,97767.0,97766.0,0.30142437]
[1732407908918,0.0008589,97767.0,97766.0,0.70488545]
[1732407909142,0.0008589,97767.0,97766.0,0.30142437]
[1732407909890,0.0008589,97767.0,97766.0,0.34317797]
[1732407910542,0.0008589,97767.0,97766.0,0.44519224]
[1732407910748,0.0008589,97768.0,97767.0,0.2727]
[1732407910962,0.0008589,97768.0,97767.0,0.37471427]
[1732407911201,0.0008589,97768.0,97767.0,0.40338157]
[1732407911446,0.0008589,97770.0,97767.0,0.28068157]
[1732407911667,0.0807,97821.0,97769.0,0.15]
[1732407911887,0.0807,97821.0,97772.0,0.1227]
[1732407912176,0.046,97823.0,97778.0,0.1247]
[1732407912404,0.046,97823.0,97780.0,0.1227]
[1732407912635,0.0807,97827.0,97803.0,0.0776]
[1732407912868,0.0807,97827.0,97803.0,0.2276]
[1732407913542,0.0807,97827.0,97803.0,0.2562673]
[1732407914073,0.023,97816.0,97803.0,0.2562673]
[1732407914311,0.023,97810.0,97800.0,0.07886089]
[1732407914554,0.10201427,97810.0,97800.0,0.07886089]
[1732407914833,0.10201427,97810.0,97800.0,0.12031035]
[1732407914834,0.023,97809.0,97800.0,0.12031035]
[1732407915066,0.023,97809.0,97801.0,0.15]
[1732407916059,0.023,97809.0,97800.0,0.19144946]
[1732407916529,0.023,97809.0,97799.0,0.07886089]
[1732407918199,0.023,97809.0,97799.0,0.11932444]
[1732407918438,0.023,97809.0,97800.0,0.15]
[1732407918925,0.023,97807.0,97800.0,0.15]
[1732407919166,0.10201427,97806.0,97800.0,0.15]
[1732407919418,0.023,97805.0,97790.0,0.07886089]
[1732407919660,0.10201427,97804.0,97791.0,0.15]
[1732407919873,0.023,97803.0,97791.0,0.15]
[1732407920655,0.023,97803.0,97790.0,0.07886089]
[1732407922771,0.0461583,97812.0,97794.0,0.0783]
[1732407922772,0.023,97811.0,97794.0,0.0783]
[1732407923014,0.10201427,97810.0,97800.0,0.07886089]
[1732407923245,0.023,97809.0,97800.0,0.07886089]
[1732407924851,0.023,97809.0,97800.0,0.1195068]
[1732407925093,0.0238588,97809.0,97800.0,0.1195068]
[1732407926023,0.0008588,97809.0,97800.0,0.14351518]
[1732407926401,0.0008588,97809.0,97801.0,0.25230838]
[1732407926970,0.0008588,97809.0,97801.0,0.2283]
[1732407927830,0.0008588,97809.0,97802.0,0.00102235]
[1732407928002,0.0008588,97809.0,97801.0,0.25230838]
[1732407928664,0.0008588,97809.0,97800.0,0.19064591]
[1732407928892,0.0008588,97809.0,97800.0,0.15]
[1732407930189,0.0008588,97809.0,97800.0,0.19203123]
[1732407934165,0.0008588,97809.0,97800.0,0.04203123]
[1732407934397,0.023,97807.0,97800.0,0.04203123]
[1732407934622,0.10201427,97806.0,97790.0,0.07886089]
[1732407934861,0.023,97805.0,97790.0,0.07886089]
[1732407935102,0.10201427,97804.0,97790.0,0.07886089]
[1732407935382,0.023,97803.0,97790.0,0.07886089]
[1732407935577,0.10201427,97802.0,97790.0,0.07886089]
[1732407935847,0.023,97800.0,97790.0,0.07886089]
[1732407936074,0.023,97800.0,97791.0,0.15]
[1732407936295,0.10201427,97799.0,97791.0,0.15]
[1732407936520,0.023,97798.0,97791.0,0.15]
[1732407936741,0.12501427,97798.0,97791.0,0.15]
[1732407937429,0.0008588,97809.0,97792.0,0.02951161]
[1732407937636,0.023,97807.0,97799.0,0.07886089]
[1732407937826,0.023,97805.0,97799.0,0.07886089]
[1732407938075,0.12501427,97805.0,97799.0,0.1083725]
[1732407938513,0.12501427,97805.0,97800.0,0.02951161]
[1732407941508,0.12501427,97805.0,97800.0,0.07114017]
[1732407942303,0.023,97803.0,97800.0,0.07114017]
[1732407942529,0.023,97801.0,97791.0,0.15]
[1732407942753,0.10201427,97800.0,97791.0,0.15]
[1732407942952,0.023,97799.0,97791.0,0.19104038]
[1732407943602,0.023,97799.0,97791.0,0.21428574]
[1732407944063,0.023,97797.0,97791.0,0.04104038]
[1732407944305,0.10201427,97796.0,97791.0,0.04104038]
[1732407944551,0.023,97795.0,97781.0,0.15]
[1732407944774,0.10201427,97794.0,97781.0,0.15]
[1732407945240,0.1277588,97809.0,97781.0,0.16816033]
[1732407945468,0.10201427,97808.0,97791.0,0.15]
[1732407945940,0.10201427,97808.0,97791.0,0.16816033]
[1732407946668,0.10201427,97808.0,97792.0,0.01816033]
[1732407946911,0.023,97807.0,97792.0,0.01816033]
[1732407947143,0.10201427,97806.0,97792.0,0.01816033]
[1732407947388,0.023,97805.0,97792.0,0.01816033]
[1732407947623,0.10201427,97804.0,97792.0,0.01816033]
[1732407947874,0.023,97803.0,97792.0,0.01816033]
[1732407948143,0.10201427,97802.0,97792.0,0.01816033]
[1732407948375,0.023,97801.0,97792.0,0.01816033]
[1732407948612,0.10201427,97800.0,97792.0,0.01816033]
[1732407948855,0.023,97799.0,97792.0,0.01816033]
[1732407949101,0.10201427,97798.0,97792.0,0.01816033]
[1732407949415,0.023,97797.0,97779.0,0.04236176]
[1732407949561,0.023,97795.0,97779.0,0.04236176]
[1732407949804,0.023,97793.0,97779.0,0.04236176]
[1732407950038,0.023,97791.0,97779.0,0.04236176]
[1732407950252,0.023,97793.0,97779.0,0.04236176]
[1732407950253,0.023,97789.0,97779.0,0.0017176]
[1732407950511,0.023,97787.0,97779.0,0.0017176]
[1732407950717,0.10201427,97786.0,97779.0,0.0017176]
[1732407950952,0.023,97785.0,97779.0,0.0017176]
[1732407951137,0.10201427,97784.0,97779.0,0.0017176]
[1732407951372,0.023,97783.0,97779.0,0.0017176]
[1732407951585,0.10201427,97782.0,97779.0,0.0017176]
[1732407951793,0.023,97781.0,97779.0,0.0017176]
[1732407952007,0.023,97780.0,97779.0,0.0017176]
[1732407956490,0.10201427,97781.0,97779.0,0.0017176]
[1732407958032,0.023,97780.0,97779.0,0.0017176]
[1732407963023,0.023,97798.0,97779.0,0.10261166]
[1732407963278,0.10201427,97797.0,97788.0,0.12009094]
[1732407963965,0.10201427,97797.0,97788.0,0.139585]
[1732407964466,0.0008583,97812.0,97789.0,0.24879406]
[1732407964765,0.0008583,97812.0,97798.0,0.12009094]
[1732407964766,0.10201427,97807.0,97798.0,0.12009094]
[1732407964986,0.0008583,97812.0,97798.0,0.12009094]
[1732407964987,0.0008583,97812.0,97799.0,0.15]
[1732407965453,0.0008583,97812.0,97799.0,0.17951161]
[1732407965660,0.0008583,97812.0,97800.0,0.02951161]
[1732407966324,0.0238588,97808.0,97800.0,0.02951161]
[1732407968076,0.0238588,97808.0,97799.0,0.19054069]
[1732407968564,0.0008588,97808.0,97801.0,0.15]
[1732407968780,0.0008588,97808.0,97802.0,0.00102237]
[1732407969216,0.0008588,97808.0,97802.0,0.02987283]
[1732407969664,0.0008588,97808.0,97803.0,0.02885046]
[1732407970586,0.0008588,97808.0,97805.0,0.15]
[1732407970797,0.0008588,97808.0,97806.0,0.18131427]
[1732407971012,0.0008588,97808.0,97807.0,0.15]
[1732407971296,0.0008588,97808.0,97807.0,0.28047213]
[1732407972191,0.0008588,97808.0,97807.0,0.02845786]
[1732407974027,0.0008588,97808.0,97807.0,0.06171116]
[1732407974293,0.0008588,97808.0,97807.0,0.21171116]
[1732407977757,0.0008588,97808.0,97807.0,0.17845786]
[1732407982870,0.0008588,97808.0,97807.0,0.17827127]
[1732407983067,0.0008588,97808.0,97807.0,0.17998867]
[1732407983296,0.0008588,97808.0,97807.0,0.22981102]
[1732407983538,0.0008588,97808.0,97807.0,0.22878867]
[1732407984249,0.0008588,97808.0,97807.0,0.40610294]
[1732407984481,0.0008583,97812.0,97808.0,0.17327056]
[1732407984723,0.0008583,97812.0,97810.0,0.2253]
[1732407984958,0.0008583,97812.0,97811.0,0.25201427]
[1732407985201,0.0008583,97812.0,97811.0,0.27657266]
[1732407991046,0.0008583,97812.0,97811.0,0.02455839]
[1732407991979,0.0008583,97812.0,97811.0,0.216618]
[1732407992417,0.0008583,97812.0,97811.0,0.17455839]
[1732407993124,0.0008583,97812.0,97807.0,0.0017174]
[1732407993350,0.0008583,97812.0,97811.0,0.06706205]
[1732407993583,0.0008583,97812.0,97811.0,0.02528246]
[1732407993804,0.023,97835.0,97820.0,0.12009094]
[1732407994037,0.10201427,97834.0,97821.0,0.15]
[1732407994290,0.023,97833.0,97821.0,0.15]
[1732407994525,0.10201427,97832.0,97821.0,0.15]
[1732407995000,0.023,97831.0,97821.0,0.15]
[1732407995236,0.10201427,97830.0,97821.0,0.15]
[1732407995480,0.023,97829.0,97821.0,0.15]
[1732407995719,0.10201427,97829.0,97821.0,0.15]
[1732407995934,0.023,97828.0,97821.0,0.15]
[1732407997157,0.023,97828.0,97812.0,0.02528246]
[1732407997370,0.10201427,97827.0,97812.0,0.02528246]
[1732407997590,0.023,97826.0,97812.0,0.04052094]
[1732407997820,0.023,97824.0,97812.0,0.04052094]
[1732407998047,0.10201427,97823.0,97807.0,0.0017174]
[1732407998283,0.023,97822.0,97807.0,0.0017174]
[1732407998533,0.023,97820.0,97807.0,0.0017174]
[1732407998990,0.023,97820.0,97807.0,0.04235427]
[1732407999225,0.023,97820.0,97807.0,0.0017174]
[1732407999467,0.12501427,97820.0,97807.0,0.0017174]
[1732408003475,0.11620527,97820.0,97807.0,0.0017174]
[1732408003702,0.11498436,97820.0,97807.0,0.0017174]
[1732408006290,0.11498436,97820.0,97811.0,0.15]
[1732408006994,0.11584306,97820.0,97811.0,0.15]
[1732408009030,0.10287297,97820.0,97811.0,0.15]
[1732408009546,0.10287297,97820.0,97811.0,0.17716722]
[1732408009774,0.10287297,97820.0,97812.0,0.02716722]
[1732408010927,0.023,97819.0,97812.0,0.02716722]
[1732408011606,0.023,97819.0,97813.0,0.15]
[1732408011849,0.0008587,97820.0,97813.0,0.15]
[1732408012399,0.0008587,97820.0,97815.0,0.15]
[1732408012611,0.0008587,97820.0,97814.0,0.0296965]
[1732408012831,0.0008587,97820.0,97815.0,0.1796965]
[1732408013047,0.0008587,97820.0,97816.0,0.01684547]
[1732408013272,0.0008587,97820.0,97816.0,0.0296965]
[1732408014393,0.023,97826.0,97816.0,0.0296965]
[1732408014666,0.0494,97841.0,97825.0,0.15]
[1732408014866,0.0494,97841.0,97825.0,0.55243439]
[1732408015095,0.0494,97841.0,97829.0,0.15]
[1732408015314,0.0235688,97842.0,97830.0,0.01782503]
[1732408015532,0.12558307,97842.0,97830.0,0.02966281]
[1732408016053,0.023,97841.0,97830.0,0.02966281]
[1732408017868,0.02278996,97841.0,97830.0,0.02966281]
[1732408020160,0.02278996,97841.0,97830.0,0.07116952]
[1732408020379,0.0008586,97839.0,97830.0,0.07116952]
[1732408023133,0.023,97838.0,97830.0,0.22116952]
[1732408023391,0.023,97837.0,97830.0,0.22116952]
[1732408023684,0.12501427,97837.0,97830.0,0.22116952]
[1732408024815,0.12467473,97837.0,97830.0,0.07116952]
[1732408025290,0.12467473,97837.0,97832.0,0.40233333]
[1732408025530,0.12467473,97837.0,97833.0,0.15]
[1732408025981,0.12467473,97837.0,97833.0,0.14958286]
[1732408026485,0.10201427,97836.0,97833.0,0.14958286]
[1732408026738,0.023,97835.0,97833.0,0.16875273]
[1732408026960,0.10201427,97834.0,97833.0,0.16875273]
[1732408027200,0.12501427,97834.0,97833.0,0.01916987]
[1732408029225,0.12501427,97834.0,97830.0,0.04150671]
[1732408029226,0.023,97833.0,97830.0,0.04150671]
[1732408029459,0.10201427,97832.0,97830.0,0.04150671]
[1732408029698,0.10201427,97832.0,97827.0,0.55228427]
[1732408029921,0.023,97831.0,97829.0,0.15]
[1732408030681,0.023,97831.0,97820.0,0.18089153]
[1732408031366,0.023,97831.0,97821.0,0.01839699]
[1732408032058,0.023,97831.0,97829.0,0.0017168]
[1732408033474,0.023,97831.0,97820.0,0.1200313]
[1732408033958,0.023,97829.0,97818.0,0.04168907]
[1732408034199,0.10201427,97828.0,97818.0,0.04168907]
[1732408034435,0.023,97827.0,97811.0,0.1517172]
[1732408034673,0.10201427,97826.0,97811.0,0.1517172]
[1732408034897,0.023,97825.0,97811.0,0.1517172]
[1732408035113,0.10201427,97824.0,97811.0,0.1517172]
[1732408035354,0.023,97823.0,97811.0,0.19233795]
[1732408035604,0.10201427,97822.0,97811.0,0.19233795]
[1732408036524,0.023,97821.0,97811.0,0.04233795]
[1732408036738,0.10201427,97820.0,97811.0,0.04233795]
[1732408036978,0.023,97819.0,97811.0,0.04233795]
[1732408037198,0.10201427,97819.0,97811.0,0.04233795]
[1732408037416,0.023,97818.0,97811.0,0.04233795]
[1732408043586,0.023,97818.0,97817.0,0.55248744]
[1732408044035,0.023,97818.0,97817.0,0.15]
[1732408044944,0.0238586,97818.0,97816.0,0.40249072]
[1732408047960,0.0238586,97818.0,97814.0,0.15]
[1732408048201,0.0238586,97818.0,97813.0,0.40249072]
[1732408048202,0.0238586,97818.0,97812.0,0.40249072]
[1732408048415,0.0238586,97818.0,97813.0,0.15]
[1732408048651,0.0238586,97818.0,97812.0,0.40249072]
[1732408048886,0.0238586,97818.0,97813.0,0.15]
[1732408049071,0.0238586,97818.0,97813.0,0.55249072]
[1732408050057,0.0238586,97818.0,97814.0,0.40249072]
[1732408050270,0.0238586,97818.0,97813.0,0.55249072]
[1732408050504,0.0238586,97818.0,97814.0,0.40249072]
[1732408051029,0.0238586,97818.0,97813.0,0.55249072]
[1732408051521,0.10201427,97817.0,97813.0,0.55249072]
[1732408051766,0.023,97816.0,97813.0,0.55249072]
[1732408052000,0.10201427,97815.0,97813.0,0.55249072]
[1732408052490,0.023,97814.0,97813.0,0.55249072]
[1732408052726,0.023,97814.0,97811.0,0.04233795]
[1732408052727,0.12501427,97814.0,97812.0,0.40249072]
[1732408053399,0.12501427,97814.0,97811.0,0.04233795]
[1732408054155,0.023,97812.0,97811.0,0.04233795]
[1732408054373,0.12501427,97812.0,97811.0,0.04233795]
[1732408057453,0.317907,97812.0,97811.0,0.0017172]
[1732408060108,0.117907,97812.0,97811.0,0.0017172]
[1732408062496,0.10201427,97812.0,97811.0,0.0017172]
[1732408063620,0.12501427,97812.0,97811.0,0.0017172]
[1732408064084,0.12501427,97812.0,97811.0,0.04328275]
[1732408064291,0.12501427,97812.0,97811.0,0.0017172]
[1732408081045,0.12587297,97812.0,97811.0,0.0017172]
[1732408084543,0.12587297,97812.0,97811.0,4.0017172]
[1732408091676,0.1258532,97812.0,97811.0,4.0017172]
[1732408099524,0.0238587,97812.0,97811.0,4.0017172]
[1732408099757,0.0008587,97812.0,97811.0,4.0017172]
[1732408099973,0.0008587,97812.0,97811.0,4.02704121]
[1732408100199,0.0008587,97812.0,97811.0,4.43035844]
[1732408100434,0.0008587,97812.0,97811.0,4.02704121]
[1732408101137,0.023,97817.0,97811.0,4.02704121]
[1732408101138,0.023,97817.0,97812.0,0.02532401]
[1732408101364,0.023,97815.0,97812.0,0.02532401]
[1732408101576,0.023,97813.0,97812.0,0.02532401]
[1732408102077,0.0008586,97818.0,97812.0,0.02532401]
[1732408102297,0.023,97817.0,97814.0,0.40330882]
[1732408103652,0.023,97817.0,97815.0,0.40330882]
[1732408103866,0.023,97817.0,97814.0,0.40330882]
[1732408104305,0.023,97817.0,97815.0,0.40330882]
[1732408104564,0.023,97817.0,97816.0,0.40330882]
[1732408105261,0.023,97817.0,97815.0,0.40330882]
[1732408105488,0.023,97817.0,97812.0,0.40338045]
[1732408106154,0.023,97817.0,97813.0,0.40338045]
[1732408106388,0.023,97817.0,97812.0,0.40338045]
[1732408107083,0.023,97817.0,97814.0,0.40338045]
[1732408107308,0.023,97817.0,97812.0,0.40338045]
[1732408107547,0.023,97817.0,97813.0,0.40338045]
[1732408108495,0.023,97817.0,97814.0,0.40338045]
[1732408108719,0.023,97817.0,97811.0,4.04340711]
[1732408109188,0.0008586,97818.0,97811.0,4.04340711]
[1732408109422,0.0008586,97818.0,97813.0,0.1246]
[1732408110361,0.0008586,97818.0,97813.0,0.14012856]
[1732408110822,0.0008586,97818.0,97814.0,0.15]
[1732408111066,0.0008586,97818.0,97814.0,0.15655085]
[1732408111504,0.0238586,97839.0,97814.0,0.14102229]
[1732408111736,0.0238586,97839.0,97822.0,0.40329381]
[1732408111737,0.023,97837.0,97822.0,0.40329381]
[1732408111979,0.023,97835.0,97822.0,0.40329381]
[1732408112218,0.023,97833.0,97822.0,0.40329381]
[1732408112451,0.023,97831.0,97822.0,0.40329381]
[1732408112669,0.10201427,97830.0,97822.0,0.40329381]
[1732408112895,0.023,97829.0,97822.0,0.40329381]
[1732408113118,0.023,97827.0,97821.0,0.40329381]
[1732408113347,0.023,97825.0,97821.0,0.40329381]
[1732408113598,0.10201427,97824.0,97821.0,0.40329381]
[1732408113819,0.023,97823.0,97821.0,0.40329381]
[1732408114045,0.10201427,97822.0,97821.0,0.40329381]
[1732408114258,0.10201427,97822.0,97820.0,0.48208345]
[1732408114259,0.12501427,97822.0,97820.0,0.48208345]
[1732408114479,0.10201427,97822.0,97820.0,0.52450892]
[1732408115365,0.10201427,97822.0,97821.0,0.40329381]
[1732408115632,0.12501427,97822.0,97820.0,0.52450892]
[1732408115864,0.10201427,97822.0,97820.0,0.52450892]
[1732408116076,0.10201427,97822.0,97820.0,0.44571928]
[1732408116310,0.10201427,97822.0,97820.0,0.04242547]
[1732408116537,0.10201427,97822.0,97820.0,0.44571928]
[1732408116752,0.10201427,97822.0,97814.0,0.1417178]
[1732408116753,0.10201427,97822.0,97819.0,0.40329381]
[1732408117228,0.10201427,97822.0,97820.0,0.40329381]
[1732408117449,0.10201427,97822.0,97819.0,0.40329381]
[1732408117989,0.10201427,97822.0,97820.0,0.40329381]
[1732408119230,0.10201427,97822.0,97814.0,0.18379816]
[1732408119647,0.10201427,97822.0,97821.0,0.40306323]
[1732408120404,0.023,97831.0,97820.0,0.40306323]
[1732408120614,0.023,97829.0,97820.0,0.40306323]
[1732408120837,0.023,97827.0,97820.0,0.40306323]
[1732408121047,0.10201427,97826.0,97823.0,0.40306323]
[1732408122162,0.10201427,97826.0,97825.0,0.40306323]
[1732408122433,0.10201427,97826.0,97824.0,0.40306323]
[1732408122670,0.10201427,97826.0,97824.0,0.40303535]
[1732408123371,0.10201427,97826.0,97823.0,0.40303535]
[1732408123595,0.10201427,97826.0,97824.0,0.40303535]
[1732408123804,0.10201427,97826.0,97825.0,0.40303535]
[1732408124033,0.0008586,97839.0,97825.0,0.40303535]
[1732408124265,0.023,97837.0,97829.0,0.07878964]
[1732408124489,0.10201427,97836.0,97829.0,0.07878964]
[1732408124721,0.023,97835.0,97829.0,0.07878964]
[1732408124996,0.10201427,97834.0,97829.0,0.07878964]
[1732408125468,0.023,97833.0,97826.0,0.125]
[1732408125687,0.10201427,97832.0,97826.0,0.125]
[1732408127078,0.10287317,97832.0,97826.0,0.125]
[1732408128416,0.10287317,97832.0,97826.0,0.16583242]
[1732408128659,0.10287317,97832.0,97826.0,0.11743242]
[1732408130048,0.10287317,97832.0,97826.0,0.04083242]
[1732408130458,0.10287317,97832.0,97824.0,0.40300461]
[1732408131112,0.10287317,97832.0,97822.0,0.03442458]
[1732408131113,0.10287317,97832.0,97823.0,0.40300461]
[1732408131474,0.10287317,97832.0,97825.0,0.40300461]
[1732408131877,0.10287317,97832.0,97823.0,0.44419172]
[1732408132104,0.10287317,97832.0,97824.0,0.40300461]
[1732408132695,0.10287317,97832.0,97822.0,0.03442458]
[1732408133101,0.10287317,97832.0,97822.0,0.07662615]
[1732408133301,0.10287317,97832.0,97822.0,0.03442458]
[1732408137114,0.10287317,97832.0,97820.0,0.16896433]
[1732408137853,0.023,97831.0,97820.0,0.16896433]
[1732408140421,0.10201427,97830.0,97820.0,0.04117469]
[1732408140633,0.0703,97829.0,97820.0,0.11996433]
[1732408140838,0.023,97827.0,97820.0,0.07878964]
[1732408141044,0.10201427,97826.0,97820.0,0.07878964]
[1732408141476,0.023,97825.0,97820.0,0.07878964]
[1732408141906,0.023,97825.0,97820.0,0.1195386]
[1732408142821,0.023,97825.0,97821.0,0.40296161]
[1732408143234,0.023,97825.0,97820.0,0.52250021]
[1732408143443,0.023,97825.0,97821.0,0.40296161]
[1732408144102,0.023,97825.0,97822.0,0.40296161]
[1732408144317,0.023,97825.0,97822.0,0.40309774]
[1732408144957,0.023,97825.0,97823.0,0.40309774]
[1732408145176,0.023,97825.0,97820.0,0.1195386]
[1732408145177,0.023,97825.0,97822.0,0.40309774]
[1732408145452,0.023,97825.0,97823.0,0.40309774]
[1732408145661,0.10201427,97824.0,97822.0,0.40309774]
[1732408145878,0.0703,97823.0,97822.0,0.40309774]
[1732408146088,0.17231427,97823.0,97820.0,0.40309774]
[1732408146333,0.023,97821.0,97818.0,0.0017178]
[1732408146560,0.023,97819.0,97818.0,0.0017178]
[1732408146782,0.12501427,97819.0,97818.0,0.0017178]
[1732408148106,0.12444327,97819.0,97818.0,0.0017178]
[1732408151659,0.12444327,97819.0,97811.0,3.9951528]
[1732408151867,0.0473,97823.0,97811.0,3.9951528]
[1732408151868,0.023,97817.0,97811.0,3.9951528]
[1732408152078,0.023,97815.0,97811.0,3.9951528]
[1732408152319,0.10201427,97814.0,97811.0,3.9951528]
[1732408152535,0.023,97813.0,97811.0,3.9951528]
[1732408152754,0.10201427,97812.0,97811.0,3.9951528]
[1732408153170,0.12501427,97812.0,97811.0,3.9951528]
[1732408162047,0.0008588,97825.0,97811.0,3.9951528]
[1732408162048,0.0008588,97825.0,97812.0,0.1261]
[1732408162265,0.023,97823.0,97812.0,0.1261]
[1732408162484,0.10201427,97822.0,97812.0,0.1261]
[1732408162912,0.023,97821.0,97812.0,0.1261]
[1732408163126,0.10201427,97820.0,97812.0,0.1261]
[1732408163355,0.023,97819.0,97812.0,0.1261]
[1732408171119,0.0008588,97825.0,97812.0,0.1261]
[1732408171326,0.023,97823.0,97815.0,0.07878964]
[1732408171772,0.023,97823.0,97816.0,0.40322557]
[1732408171993,0.023,97823.0,97815.0,0.48201521]
[1732408172275,0.023,97823.0,97816.0,0.40322557]
[1732408172663,0.023,97823.0,97818.0,0.55322557]
[1732408172871,0.023,97823.0,97818.0,0.15]
[1732408173316,0.023,97823.0,97818.0,0.55322557]
[1732408175165,0.0238589,97823.0,97818.0,0.55322557]
[1732408175390,0.0238589,97823.0,97819.0,0.40322557]
[1732408175613,0.0238589,97823.0,97820.0,0.15]
[1732408176786,0.0238589,97823.0,97819.0,0.15]
[1732408177251,0.0238589,97823.0,97820.0,0.40322557]
[1732408177720,0.0238589,97823.0,97819.0,0.15]
[1732408177721,0.0238589,97823.0,97819.0,0.55322557]
[1732408177945,0.0238589,97823.0,97819.0,0.59566306]
[1732408178174,0.0238589,97823.0,97819.0,0.19243749]
[1732408178423,0.0238589,97823.0,97819.0,0.59566306]
[1732408178646,0.0238589,97823.0,97819.0,0.19243749]
[1732408179095,0.0238589,97823.0,97819.0,0.59566306]
[1732408179541,0.02066365,97821.0,97819.0,0.59566306]
[1732408179762,0.10201427,97820.0,97819.0,0.59566306]
[1732408180328,0.10201427,97820.0,97819.0,0.19243749]
[1732408181875,0.12501427,97820.0,97819.0,0.19243749]
[1732408182096,0.12501427,97820.0,97819.0,0.04243749]
[1732408182319,0.023,97819.0,97818.0,0.15]
[1732408182590,0.12501427,97819.0,97818.0,0.15]
[1732408182974,0.12501427,97819.0,97812.0,0.15]
[1732408183180,0.10201427,97818.0,97812.0,0.15]
[1732408183476,0.023,97817.0,97812.0,0.15]
[1732408183682,0.10201427,97816.0,97812.0,0.15]
[1732408183936,0.023,97815.0,97812.0,0.15]
[1732408186180,0.0008589,97823.0,97812.0,0.15]
[1732408186403,0.10287317,97823.0,97812.0,0.15]
[1732408186610,0.023,97822.0,97812.0,0.15]
[1732408187233,0.023,97822.0,97813.0,0.0478]
[1732408187714,0.0008589,97823.0,97813.0,0.0478]
[1732408187935,0.0008589,97823.0,97814.0,0.2333]
[1732408190318,0.0008589,97823.0,97814.0,0.25733306]
[1732408190526,0.0008589,97823.0,97815.0,0.19882225]
[1732408190732,0.0008589,97823.0,97815.0,0.22285531]
[1732408192207,0.0008586,97839.0,97815.0,0.22285531]
[1732408192414,0.023,97837.0,97829.0,0.07878964]
[1732408192680,0.023,97835.0,97829.0,0.07878964]
[1732408192885,0.10201427,97834.0,97829.0,0.07878964]